[Event "TUR-chT Superleague 2018"]
[Site "Ankara"]
[Date "2018.07.28"]
[Round "4"]
[White "Unat, Can Haktan"]
[Black "Kamer, Kayra"]
[Result "1-0"]
[ECO "B41"]
[WhiteElo "2047"]
[BlackElo "2181"]
[Annotator "NA"]
[PlyCount "135"]
[EventDate "2018.07.25"]
[EventType "team-tourn"]
[EventCountry "TUR"]
[SourceTitle "playchess.com"]
[Source "ChessBase"]
[SourceQuality "1"]
[TimeControl "40/5400+30:1800+30"]

1. e4 {[%emt 0:00:30]} c5 {[%emt 0:01:00]} 2. Nf3 {[%emt 0:00:30]} e6 {[%emt 0:00:30]} 3. d4 {[%emt 0:00:30]} cxd4 {[%emt 0:00:30]} 4. Nxd4 {[%emt 0:00:00]} a6 {[%emt 0:00:00]} 5. c4 {[%emt 0:00:00]} Nf6 {[%emt 0:00:00]} 6. Nc3 {[%emt 0:00:00]} Qc7 {[%emt 0:00:00]} 7. Be2 {[%emt 0:00:00]} b6 {[%emt 0:00:00]} 8. O-O {[%emt 0:00:30]} Bb7 {[%emt 0:00:00]} 9. Qd3 {[%emt 0:00:00]} d6 {[%emt 0:00:00]} 10. f4 {[%emt 0:01:00]} Nbd7 {[%emt 0:00:00]} 11. b4 {[%emt 0:03:30]} Be7 {[%emt 0:03:00]} 12. Bb2 {[%emt 0:01:30]} Rc8 {[%emt 0:01:30]} 13. Rae1 {[%emt 0:04:30]} O-O {[%emt 0:01:30]} 14. g4 {[%emt 0:03:30]} d5 {[%emt 0:00:30]} 15. cxd5 {[%emt 0:00:30]} exd5 {[%emt 0:00:30]} 16. e5 {[%emt 0:03:30]} Ne4 {[%emt 0:03:30]} 17. Rc1 {[%emt 0:06:30]} Qb8 {[%emt 0:02:30]} 18. Nf5 {[%emt 0:02:30]} Bxb4 {[%emt 0:05:30]} 19. Nxe4 {[%emt 0:00:30]} dxe4 {[%emt 0:00:00]} 20. Qxd7 {[%emt 0:01:30]} Rcd8 {[%emt 0:00:00]} 21. Qa4 {[%emt 0:17:30]} Bc5+ {[%emt 0:00:30]} 22. Rxc5 {[%emt 0:00:30]} bxc5 {[%emt 0:00:00]} 23. Nd6 {[%emt 0:03:30]} Bd5 {[%emt 0:00:00]} 24. Qc2 {[%emt 0:05:30]} Qb6 {[%emt 0:01:30]} 25. Qc3 {[%emt 0:07:30]} Rb8 {[%emt 0:02:30]} 26. Ba1 {[%emt 0:01:30]} Qb4 {[%emt 0:01:30]} 27. Qxb4 {[%emt 0:03:30]} Rxb4 {[%emt 0:00:30]} 28. Nf5 {[%emt 0:04:30]} Bxa2 {[%emt 0:00:30]} 29. Ne7+ {[%emt 0:00:30]} Kh8 {[%emt 0:00:30]} 30. f5 {[%emt 0:00:00]} Rb1 {[%emt 0:05:30]} 31. Rxb1 {[%emt 0:00:00]} Bxb1 {[%emt 0:00:30]} 32. f6 {[%emt 0:00:30]} gxf6 {[%emt 0:04:30]} 33. exf6 {[%emt 0:00:30]} Bd3 {[%emt 0:00:30]} 34. Kf2 {[%emt 0:02:30]} Rb8 {[%emt 0:03:30]} 35. Be5 {[%emt 0:02:30]} Rb6 {[%emt 0:03:30]} 36. g5 {[%emt 0:00:30]} c4 {[%emt 0:06:30]} 37. h4 {[%emt 0:00:30]} Rb5 {[%emt 0:00:30]} 38. Bd4 {[%emt 0:02:30]} c3 {[%emt 0:02:30]} 39. Bxd3 {[%emt 0:00:30]} exd3 {[%emt 0:00:30]} 40. Bxc3 {[%emt 0:00:30]} Rc5 {[%emt 0:00:30]} 41. Bd2 {[%emt 0:01:30]} Re5 {[%emt 0:00:30]} 42. Be3 {[%emt 0:00:30]} Re6 {[%emt 0:07:30]} 43. Nf5 {[%emt 0:02:30]} Kg8 {[%emt 0:00:30]} 44. Bc5 {[%emt 0:00:30]} h5 {[%emt 0:01:30]} 45. Bb4 {[%emt 0:14:30]} Re4 {[%emt 0:04:30]} 46. Ne7+ {[%emt 0:02:30]} Kh7 {[%emt 0:00:30]} 47. Bc3 {[%emt 0:06:30]} Rc4 {[%emt 0:10:30]} 48. g6+ {[%emt 0:01:30]} fxg6 {[%emt 0:00:30]} 49. Be5 {[%emt 0:00:30]} d2 {[%emt 0:09:30]} 50. f7 {[%emt 0:00:00]} Rf4+ {[%emt 0:05:30]} 51. Bxf4 {[%emt 0:00:00]} d1=Q {[%emt 0:00:00]} 52. f8=Q {[%emt 0:00:30]} Qd4+ {[%emt 0:00:00]} 53. Kf3 {[%emt 0:02:30]} Qd3+ {[%emt 0:00:30]} 54. Be3 {[%emt 0:00:30]} Qf1+ {[%emt 0:01:30]} 55. Bf2 {[%emt 0:00:00]} Qh3+ {[%emt 0:00:30]} 56. Ke2 {[%emt 0:00:00]} Qe6+ {[%emt 0:00:00]} 57. Kd3 {[%emt 0:01:30]} a5 {[%emt 0:01:00]} 58. Qg8+ {[%emt 0:01:30]} Qxg8 {[%emt 0:00:30]} 59. Nxg8 {[%emt 0:00:00]} g5 {[%emt 0:00:30]} 60. hxg5 {[%emt 0:01:00]} Kxg8 {[%emt 0:00:30]} 61. Kc4 {[%emt 0:00:00]} Kf7 {[%emt 0:00:00]} 62. Kb5 {[%emt 0:00:00]} Kg6 {[%emt 0:00:00]} 63. Bh4 {[%emt 0:00:30]} Kf5 {[%emt 0:00:30]} 64. Kxa5 {[%emt 0:00:30]} Kg4 {[%emt 0:00:30]} 65. g6 {[%emt 0:00:00]} Kxh4 {[%emt 0:00:00]} 66. g7 {[%emt 0:00:00]} Kh3 {[%emt 0:00:00]} 67. g8=Q {[%emt 0:00:00]} h4 {[%emt 0:00:00]} 68. Qg5 {[%emt 0:00:00]} 1-0

[Event "TUR-chT Superleague 2018"]
[Site "Ankara"]
[Date "2018.07.28"]
[Round "4"]
[White "Sade, Defne"]
[Black "Shuvalova, Polina"]
[Result "0-1"]
[ECO "B19"]
[WhiteElo "1954"]
[BlackElo "2417"]
[Annotator "NA"]
[PlyCount "104"]
[EventDate "2018.07.25"]
[EventType "team-tourn"]
[EventCountry "TUR"]
[SourceTitle "playchess.com"]
[Source "ChessBase"]
[SourceQuality "1"]
[TimeControl "40/5400+30:1800+30"]

1. e4 {[%emt 0:00:30]} c6 {[%emt 0:01:00]} 2. d4 {[%emt 0:00:30]} d5 {[%emt 0:00:30]} 3. Nc3 {[%emt 0:00:30]} dxe4 {[%emt 0:00:30]} 4. Nxe4 {[%emt 0:00:30]} Bf5 {[%emt 0:00:30]} 5. Ng3 {[%emt 0:00:30]} Bg6 {[%emt 0:00:00]} 6. h4 {[%emt 0:00:00]} h6 {[%emt 0:00:00]} 7. Nf3 {[%emt 0:00:00]} Nd7 {[%emt 0:00:00]} 8. h5 {[%emt 0:00:00]} Bh7 {[%emt 0:00:00]} 9. Bd3 {[%emt 0:00:00]} Bxd3 {[%emt 0:00:00]} 10. Qxd3 {[%emt 0:00:00]} e6 {[%emt 0:00:00]} 11. Bd2 {[%emt 0:00:00]} Ngf6 {[%emt 0:00:00]} 12. O-O-O {[%emt 0:00:00]} Be7 {[%emt 0:00:00]} 13. Ne4 {[%emt 0:00:00]} O-O {[%emt 0:00:00]} 14. Kb1 {[%emt 0:00:00]} c5 {[%emt 0:01:00]} 15. Nxf6+ {[%emt 0:04:00]} Nxf6 {[%emt 0:00:30]} 16. Be3 {[%emt 0:02:30]} Qc7 {[%emt 0:04:30]} 17. Ne5 {[%emt 0:02:30]} cxd4 {[%emt 0:08:30]} 18. Bxd4 {[%emt 0:01:30]} Rac8 {[%emt 0:03:30]} 19. c3 {[%emt 0:08:30]} Rfd8 {[%emt 0:07:30]} 20. Qe2 {[%emt 0:14:30]} Bc5 {[%emt 0:05:30]} 21. Bxc5 {[%emt 0:08:30]} Qxc5 {[%emt 0:00:30]} 22. g4 {[%emt 0:00:30]} Nd5 {[%emt 0:10:30]} 23. Ka1 {[%emt 0:21:30]} b5 {[%emt 0:13:30]} 24. g5 {[%emt 0:05:30]} Nf4 {[%emt 0:15:30]} 25. Qe4 {[%emt 0:02:30]} hxg5 {[%emt 0:00:30]} 26. h6 {[%emt 0:01:30]} Rxd1+ {[%emt 0:08:30]} 27. Rxd1 {[%emt 0:00:00]} gxh6 {[%emt 0:00:30]} 28. Ng4 {[%emt 0:12:51]} f5 {[%emt 0:05:46]} 29. Nxh6+ {[%emt 0:05:27]} Kg7 {[%emt 0:00:19]} 30. Nxf5+ {[%emt 0:05:38]} exf5 {[%emt 0:01:09]} 31. Rd7+ {[%emt 0:00:07]} Kf6 {[%emt 0:03:16]} 32. Qh1 {[%emt 0:01:22]} Ng6 {[%emt 0:02:26]} 33. Qh7 {[%emt 0:01:45]} Qf8 {[%emt 0:01:53]} 34. Rxa7 {[%emt 0:00:19]} Rd8 {[%emt 0:01:10]} 35. Ra6+ {[%emt 0:02:29]} Rd6 {[%emt 0:00:07]} 36. Qb7 {[%emt 0:00:31]} Qe7 {[%emt 0:01:05]} 37. Rxd6+ {[%emt 0:00:53]} Qxd6 {[%emt 0:00:03]} 38. a3 {[%emt 0:00:08]} Qc5 {[%emt 0:02:32]} 39. Qa6+ {[%emt 0:00:30]} Kg7 {[%emt 0:00:03]} 40. Qb7+ {[%emt 0:00:00]} Kh6 {[%emt 0:30:45]} 41. Qh1+ {[%emt 0:00:30]} Nh4 {[%emt 0:00:00]} 42. f4 {[%emt 0:00:30]} Kg6 {[%emt 0:00:00]} 43. fxg5 {[%emt 0:00:30]} Kxg5 {[%emt 0:00:00]} 44. Qd1 {[%emt 0:01:30]} f4 {[%emt 0:00:00]} 45. Qd8+ {[%emt 0:00:30]} Kg4 {[%emt 0:00:00]} 46. Qd7+ {[%emt 0:00:30]} Kg3 {[%emt 0:00:00]} 47. Qg7+ {[%emt 0:01:30]} Kh3 {[%emt 0:00:00]} 48. Qd7+ {[%emt 0:00:30]} Qf5 {[%emt 0:00:00]} 49. Qd1 {[%emt 0:00:30]} f3 {[%emt 0:00:00]} 50. Qh1+ {[%emt 0:00:00]} Kg3 {[%emt 0:00:00]} 51. Qe1+ {[%emt 0:01:00]} f2 {[%emt 0:00:00]} 52. Qe3+ {[%emt 0:00:00]} Nf3 {[%emt 0:00:00]} 0-1

[Event "TUR-chT Superleague 2018"]
[Site "Ankara"]
[Date "2018.07.28"]
[Round "4"]
[White "Yildirim, Ibrahim Halil"]
[Black "Uzumcu, Ahmet Utku"]
[Result "0-1"]
[ECO "B80"]
[WhiteElo "1887"]
[BlackElo "2261"]
[Annotator "NA"]
[PlyCount "70"]
[EventDate "2018.07.25"]
[EventType "team-tourn"]
[EventCountry "TUR"]
[SourceTitle "playchess.com"]
[Source "ChessBase"]
[SourceQuality "1"]
[TimeControl "40/5400+30:1800+30"]

1. e4 {[%emt 0:00:30]} c5 {[%emt 0:01:00]} 2. Nf3 {[%emt 0:00:30]} d6 {[%emt 0:00:30]} 3. d4 {[%emt 0:00:00]} cxd4 {[%emt 0:00:00]} 4. Nxd4 {[%emt 0:00:00]} Nf6 {[%emt 0:00:00]} 5. Nc3 {[%emt 0:00:30]} a6 {[%emt 0:00:30]} 6. Be3 {[%emt 0:00:30]} e6 {[%emt 0:00:00]} 7. f3 {[%emt 0:01:30]} b5 {[%emt 0:00:00]} 8. Qd2 {[%emt 0:08:30]} Bb7 {[%emt 0:00:00]} 9. O-O-O {[%emt 0:08:30]} Nbd7 {[%emt 0:00:00]} 10. g4 {[%emt 0:13:30]} Nb6 {[%emt 0:00:30]} 11. Qf2 {[%emt 0:06:30]} Nfd7 {[%emt 0:00:30]} 12. Nb3 {[%emt 0:13:30]} Rc8 {[%emt 0:04:30]} 13. Bd3 {[%emt 0:06:30]} Rxc3 {[%emt 0:14:30]} 14. bxc3 {[%emt 0:03:30]} Qc7 {[%emt 0:01:30]} 15. Kd2 {[%emt 0:09:30]} Na4 {[%emt 0:03:30]} 16. Ke1 {[%emt 0:01:30]} Nxc3 {[%emt 0:02:30]} 17. Ra1 {[%emt 0:01:30]} Be7 {[%emt 0:03:30]} 18. Bd4 {[%emt 0:07:13]} Ne5 {[%emt 0:08:30]} 19. Bxe5 {[%emt 0:03:30]} dxe5 {[%emt 0:00:30]} 20. h4 {[%emt 0:08:58]} O-O {[%emt 0:03:30]} 21. g5 {[%emt 0:01:08]} f5 {[%emt 0:04:30]} 22. gxf6 {[%emt 0:00:30]} Rxf6 {[%emt 0:00:00]} 23. Qe3 {[%emt 0:00:08]} Rf4 {[%emt 0:01:00]} 24. Kd2 {[%emt 0:01:46]} Bb4 {[%emt 0:02:30]} 25. Kc1 {[%emt 0:00:54]} a5 {[%emt 0:02:30]} 26. a3 {[%emt 0:01:00]} Bd6 {[%emt 0:02:30]} 27. Nd2 {[%emt 0:01:03]} Bc5 {[%emt 0:00:30]} 28. Qe1 {[%emt 0:00:26]} Bd4 {[%emt 0:01:30]} 29. Nb3 {[%emt 0:00:39]} Rxf3 {[%emt 0:03:30]} 30. Nxd4 {[%emt 0:00:39]} exd4 {[%emt 0:00:00]} 31. Rf1 {[%emt 0:00:26]} Rxf1 {[%emt 0:04:00]} 32. Qxf1 {[%emt 0:00:05]} Nxe4 {[%emt 0:00:30]} 33. Bxb5 {[%emt 0:00:43]} Qc3 {[%emt 0:05:30]} 34. Ra2 {[%emt 0:00:13]} Bd5 {[%emt 0:03:30]} 35. Rb2 {[%emt 0:01:18]} Qe3+ {[%emt 0:00:30]} 0-1

[Event "TUR-chT Superleague 2018"]
[Site "Ankara"]
[Date "2018.07.28"]
[Round "4"]
[White "Celik, Eda"]
[Black "Ozbek, Busra"]
[Result "1/2-1/2"]
[ECO "B07"]
[WhiteElo "1864"]
[BlackElo "1848"]
[Annotator "NA"]
[PlyCount "161"]
[EventDate "2018.07.25"]
[EventType "team-tourn"]
[EventCountry "TUR"]
[SourceTitle "playchess.com"]
[Source "ChessBase"]
[SourceQuality "1"]
[TimeControl "40/5400+30:1800+30"]

1. e4 d6 2. d4 Nf6 3. Nc3 g6 4. g3 Bg7 5. Bg2 O-O 6. Nge2 c6 7. O-O e5 8. a4 a5 9. h3 Na6 10. Be3 Nb4 11. g4 Qc7 12. Ng3 Nd7 13. Nce2 b5 14. c3 Na6 15. axb5 cxb5 16. f4 Nb6 17. f5 f6 18. g5 Bb7 19. gxf6 Bxf6 20. Bh6 Rf7 21. Rxa5 Bc6 22. Ra1 Qe7 23. d5 Bd7 24. Nc1 Bh4 25. Qg4 Kh8 26. Nce2 g5 27. Nh5 Nc4 28. Rf3 Nc7 29. Rxa8+ Nxa8 30. b3 Nd2 31. Rd3 Nxb3 32. Kh2 Nc7 33. Rd1 Ne8 34. Ng1 Nf6 35. Nxf6 Qxf6 36. Rb1 Nc5 37. Qh5 Be8 38. Ra1 Na4 39. Nf3 Re7 40. Bxg5 Bxh5 41. Bxf6+ Bxf6 42. c4 Nc3 43. Ne1 b4 44. Ra6 b3 45. Rb6 Bd1 46. Nd3 Rd7 47. c5 Na4 48. Rb5 Nxc5 49. Nxc5 dxc5 50. Rxc5 Rb7 51. d6 b2 52. Rc8+ Bd8 53. Rxd8+ Kg7 54. d7 b1=Q {[%emt 2:17:21]} 55. Rg8+ {[%emt 2:26:47]} Kxg8 {[%emt 0:00:30]} 56. d8=Q+ {[%emt 0:00:30]} Kf7 {[%emt 0:00:30]} 57. Qd5+ {[%emt 0:00:30]} Kf8 {[%emt 0:00:30]} 58. Qxe5 {[%emt 0:00:30]} Qb3 {[%emt 0:00:30]} 59. Qh8+ {[%emt 0:00:30]} Qg8 {[%emt 0:00:30]} 60. Qf6+ {[%emt 0:00:30]} Qf7 {[%emt 0:00:30]} 61. Qd6+ {[%emt 0:00:30]} Qe7 {[%emt 0:00:30]} 62. Qxd1 {[%emt 0:00:30]} Qe5+ {[%emt 0:00:30]} 63. Kh1 {[%emt 0:00:30]} Ra7 {[%emt 0:00:30]} 64. Qd8+ {[%emt 0:00:30]} Kf7 {[%emt 0:00:30]} 65. Qd5+ {[%emt 0:00:30]} Qxd5 {[%emt 0:00:30]} 66. exd5 {[%emt 0:00:30]} Kf6 {[%emt 0:00:30]} 67. Kh2 {[%emt 0:00:30]} Ra3 {[%emt 0:00:30]} 68. Be4 {[%emt 0:00:30]} Ke5 {[%emt 0:00:30]} 69. Bg2 {[%emt 0:00:30]} Kxf5 {[%emt 0:00:30]} 70. Kg1 {[%emt 0:00:30]} h5 {[%emt 0:00:30]} 71. Kf2 {[%emt 0:00:30]} h4 {[%emt 0:00:30]} 72. Bf3 {[%emt 0:00:30]} Kf4 {[%emt 0:00:30]} 73. Bg4 {[%emt 0:00:30]} Ra2+ {[%emt 0:00:30]} 74. Ke1 {[%emt 0:00:30]} Ke5 {[%emt 0:00:30]} 75. Be6 {[%emt 0:00:33]} Rb2 {[%emt 0:00:50]} 76. Kf1 {[%emt 0:00:27]} Rd2 {[%emt 0:01:14]} 77. Ke1 {[%emt 0:00:26]} Rd4 {[%emt 0:00:53]} 78. Ke2 {[%emt 0:00:18]} Kf4 {[%emt 0:00:05]} 79. Kf2 {[%emt 0:00:42]} Rd2+ {[%emt 0:00:33]} 80. Ke1 {[%emt 0:00:01]} Ke3 {[%emt 0:01:05]} 81. Kf1 {[%emt 0:00:53]} 1/2-1/2

[Event "TUR-chT Superleague 2018"]
[Site "Ankara"]
[Date "2018.07.28"]
[Round "4"]
[White "Ayan, Bengu Sena"]
[Black "Onur, Cigdem"]
[Result "1/2-1/2"]
[ECO "A06"]
[WhiteElo "1787"]
[BlackElo "1750"]
[Annotator "NA"]
[PlyCount "90"]
[EventDate "2018.07.25"]
[EventType "team-tourn"]
[EventCountry "TUR"]
[SourceTitle "playchess.com"]
[Source "ChessBase"]
[SourceQuality "1"]
[TimeControl "40/5400+30:1800+30"]

1. d4 {[%emt 0:00:30]} d5 {[%emt 0:01:00]} 2. c4 {[%emt 0:00:30]} c6 {[%emt 0:00:30]} 3. Nf3 {[%emt 0:00:30]} Nf6 {[%emt 0:00:30]} 4. e3 {[%emt 0:00:00]} e6 {[%emt 0:00:00]} 5. b3 {[%emt 0:00:00]} Nbd7 {[%emt 0:01:00]} 6. Bb2 {[%emt 0:00:00]} Bd6 {[%emt 0:12:30]} 7. Bd3 {[%emt 0:00:00]} Qe7 {[%emt 0:02:30]} 8. Ne5 {[%emt 0:01:30]} Ne4 {[%emt 0:06:30]} 9. O-O {[%emt 0:06:30]} Bc7 {[%emt 0:14:30]} 10. f3 {[%emt 0:06:30]} Nxe5 {[%emt 0:02:30]} 11. dxe5 {[%emt 0:09:30]} Nc5 {[%emt 0:01:30]} 12. Bc2 {[%emt 0:02:30]} dxc4 {[%emt 0:06:30]} 13. bxc4 {[%emt 0:01:30]} Bd7 {[%emt 0:15:30]} 14. Nd2 {[%emt 0:06:30]} O-O-O {[%emt 0:07:30]} 15. Ne4 {[%emt 0:04:30]} Nxe4 {[%emt 0:04:30]} 16. Bxe4 {[%emt 0:00:30]} Qc5 {[%emt 0:09:20]} 17. Bd4 {[%emt 0:04:30]} Qxc4 {[%emt 0:02:11]} 18. Bxa7 {[%emt 0:11:30]} Bxe5 {[%emt 0:02:07]} 19. Bb6 {[%emt 0:03:30]} Bc7 {[%emt 0:04:48]} 20. Rc1 {[%emt 0:03:30]} Qa6 {[%emt 0:02:05]} 21. Bxc7 {[%emt 0:01:30]} Kxc7 {[%emt 0:00:03]} 22. Qd4 {[%emt 0:01:30]} f6 {[%emt 0:01:19]} 23. Rfd1 {[%emt 0:01:30]} Qb6 {[%emt 0:01:53]} 24. Qd6+ {[%emt 0:01:30]} Kc8 {[%emt 0:00:05]} 25. Rc3 {[%emt 0:04:30]} Qc7 {[%emt 0:00:03]} 26. Qb4 {[%emt 0:01:30]} Be8 {[%emt 0:01:21]} 27. Rb1 {[%emt 0:00:30]} Bg6 {[%emt 0:00:44]} 28. Ra3 {[%emt 0:03:30]} Bxe4 {[%emt 0:00:40]} 29. fxe4 {[%emt 0:00:30]} Qb8 {[%emt 0:00:46]} 30. Ra5 {[%emt 0:04:30]} Rd7 {[%emt 0:00:30]} 31. Qa3 {[%emt 0:00:30]} Kc7 {[%emt 0:00:33]} 32. Ra7 {[%emt 0:00:30]} Rhd8 {[%emt 0:00:28]} 33. Qa5+ {[%emt 0:17:41]} Kd6 {[%emt 0:00:06]} 34. Qb4+ {[%emt 0:00:10]} c5 {[%emt 0:00:52]} 35. Rd1+ {[%emt 0:01:22]} Ke7 {[%emt 0:00:26]} 36. Qxc5+ {[%emt 0:00:41]} Kf7 {[%emt 0:00:29]} 37. Rxd7+ {[%emt 0:01:11]} Rxd7 {[%emt 0:00:02]} 38. Qa3 {[%emt 0:00:12]} Rd1+ {[%emt 0:00:51]} 39. Kf2 {[%emt 0:00:04]} Qxh2 {[%emt 0:00:42]} 40. Rxb7+ {[%emt 0:01:19]} Kg6 {[%emt 0:01:06]} 41. Rxg7+ {[%emt 0:16:12]} Kxg7 {[%emt 0:06:30]} 42. Qe7+ {[%emt 0:00:30]} Kg6 {[%emt 0:00:30]} 43. Qe8+ {[%emt 0:00:00]} Kh6 {[%emt 0:00:30]} 44. Qf8+ {[%emt 0:00:00]} Kg6 {[%emt 0:00:30]} 45. Qg8+ {[%emt 0:00:16]} Kh6 {[%emt 0:00:30]} 1/2-1/2

[Event "TUR-chT Superleague 2018"]
[Site "Ankara"]
[Date "2018.07.28"]
[Round "4"]
[White "Sahin, Hayrun Nisa"]
[Black "Yorgun, Yaren Naz"]
[Result "1/2-1/2"]
[ECO "B08"]
[WhiteElo "1736"]
[BlackElo "1737"]
[Annotator "NA"]
[PlyCount "111"]
[EventDate "2018.07.25"]
[EventType "team-tourn"]
[EventCountry "TUR"]
[SourceTitle "playchess.com"]
[Source "ChessBase"]
[SourceQuality "1"]
[TimeControl "40/5400+30:1800+30"]

1. e4 {[%emt 0:00:30]} g6 {[%emt 0:01:00]} 2. d4 {[%emt 0:00:30]} Bg7 {[%emt 0:00:30]} 3. Nc3 {[%emt 0:00:00]} d6 {[%emt 0:00:00]} 4. Nf3 {[%emt 0:00:00]} Nf6 {[%emt 0:00:00]} 5. Be3 {[%emt 0:00:30]} O-O {[%emt 0:02:30]} 6. Qd2 {[%emt 0:02:30]} a6 {[%emt 0:02:30]} 7. Bh6 {[%emt 0:03:30]} b5 {[%emt 0:08:30]} 8. Bd3 {[%emt 0:02:30]} Bb7 {[%emt 0:09:30]} 9. h4 {[%emt 0:02:30]} Bxh6 {[%emt 0:16:30]} 10. Qxh6 {[%emt 0:01:30]} Ng4 {[%emt 0:00:00]} 11. Qd2 {[%emt 0:26:30]} h5 {[%emt 0:02:00]} 12. Nh2 {[%emt 0:11:30]} Nxh2 {[%emt 0:23:30]} 13. Rxh2 {[%emt 0:02:30]} e5 {[%emt 0:00:00]} 14. dxe5 {[%emt 0:03:30]} dxe5 {[%emt 0:03:00]} 15. O-O-O {[%emt 0:09:30]} Qf6 {[%emt 0:05:30]} 16. g4 {[%emt 0:01:30]} hxg4 {[%emt 0:00:30]} 17. Rg1 {[%emt 0:01:30]} Qf4 {[%emt 0:03:50]} 18. Qxf4 {[%emt 0:01:30]} exf4 {[%emt 0:00:10]} 19. Rxg4 {[%emt 0:00:30]} Kg7 {[%emt 0:02:00]} 20. h5 {[%emt 0:02:30]} Rh8 {[%emt 0:01:44]} 21. Rxf4 {[%emt 0:01:30]} Rxh5 {[%emt 0:04:03]} 22. Rxh5 {[%emt 0:00:30]} gxh5 {[%emt 0:00:00]} 23. Rh4 {[%emt 0:05:31]} Nd7 {[%emt 0:01:25]} 24. Rxh5 {[%emt 0:00:49]} Rh8 {[%emt 0:03:16]} 25. Rxh8 {[%emt 0:05:21]} Kxh8 {[%emt 0:00:02]} 26. Kd2 {[%emt 0:02:03]} Kg7 {[%emt 0:00:48]} 27. Ke3 {[%emt 0:00:20]} Kf6 {[%emt 0:06:10]} 28. f4 {[%emt 0:01:51]} Ke6 {[%emt 0:01:26]} 29. Ne2 {[%emt 0:00:21]} c5 {[%emt 0:00:10]} 30. b3 {[%emt 0:01:13]} Nf6 {[%emt 0:01:47]} 31. a4 {[%emt 0:01:18]} bxa4 {[%emt 0:02:31]} 32. bxa4 {[%emt 0:00:15]} Nd7 {[%emt 0:00:44]} 33. a5 {[%emt 0:00:29]} Nb8 {[%emt 0:00:18]} 34. Nc3 {[%emt 0:01:57]} f6 {[%emt 0:00:59]} 35. Na4 {[%emt 0:03:25]} Kd6 {[%emt 0:00:24]} 36. Nb6 {[%emt 0:03:29]} Bc6 {[%emt 0:00:39]} 37. Nc8+ {[%emt 0:01:35]} Kd7 {[%emt 0:00:29]} 38. Nb6+ {[%emt 0:00:40]} Kd6 {[%emt 0:00:13]} 39. Bc4 {[%emt 0:00:18]} Ke7 {[%emt 0:00:49]} 40. Bd5 {[%emt 0:00:00]} Bb5 {[%emt 0:01:03]} 41. Bb7 {[%emt 0:09:35]} Bc6 {[%emt 0:20:47]} 42. Bxc6 {[%emt 0:03:30]} Nxc6 {[%emt 0:00:02]} 43. Nd5+ {[%emt 0:01:10]} Ke6 {[%emt 0:00:41]} 44. Nc7+ {[%emt 0:00:46]} Kd6 {[%emt 0:00:25]} 45. Nxa6 {[%emt 0:00:46]} Nxa5 {[%emt 0:00:16]} 46. Kf3 {[%emt 0:09:18]} Nc4 {[%emt 0:08:36]} 47. c3 {[%emt 0:03:05]} Nd2+ {[%emt 0:00:05]} 48. Ke3 {[%emt 0:01:32]} Nc4+ {[%emt 0:00:47]} 49. Ke2 {[%emt 0:02:51]} Kc6 {[%emt 0:00:47]} 50. Kf3 {[%emt 0:00:17]} Nd2+ {[%emt 0:00:09]} 51. Ke3 {[%emt 0:00:55]} Nc4+ {[%emt 0:00:30]} 52. Kd3 {[%emt 0:00:00]} Nb2+ {[%emt 0:00:32]} 53. Ke2 {[%emt 0:00:18]} Nc4 {[%emt 0:00:02]} 54. f5 {[%emt 0:01:24]} Kb6 {[%emt 0:01:56]} 55. Nb8 {[%emt 0:00:01]} Kc7 {[%emt 0:00:32]} 56. Na6+ {[%emt 0:00:15]} 1/2-1/2

[Event "TUR-chT Superleague 2018"]
[Site "Ankara"]
[Date "2018.07.29"]
[Round "5"]
[White "Solak, Dragan"]
[Black "Can, Emre"]
[Result "1-0"]
[ECO "B97"]
[WhiteElo "2603"]
[BlackElo "2605"]
[Annotator "RC"]
[PlyCount "89"]
[EventDate "2018.07.25"]
[EventType "team-tourn"]
[EventCountry "TUR"]
[SourceTitle "playchess.com"]
[Source "ChessBase"]
[SourceQuality "1"]
[TimeControl "40/5400+30:1800+30"]

1. e4 {[%emt 0:00:30]} c5 {[%emt 0:01:00]} 2. Nf3 {[%emt 0:00:30]} d6 {[%emt 0:00:30]} 3. d4 {[%emt 0:00:30]} cxd4 {[%emt 0:00:30]} 4. Nxd4 {[%emt 0:00:30]} Nf6 {[%emt 0:00:00]} 5. Nc3 {[%emt 0:00:00]} a6 {[%emt 0:00:00]} 6. Bg5 {[%emt 0:00:00]} e6 {[%emt 0:00:00]} 7. f4 {[%emt 0:00:00]} h6 {[%emt 0:01:00]} 8. Bh4 {[%emt 0:00:00]} Qb6 {[%emt 0:00:30]} 9. Qd2 {[%emt 0:01:30]} Qxb2 {[%emt 0:00:30]} 10. Rb1 {[%emt 0:00:30]} Qa3 {[%emt 0:00:30]} 11. e5 {[%emt 0:00:00]} dxe5 {[%emt 0:01:30]} 12. fxe5 {[%emt 0:00:00]} g5 {[%emt 0:00:00]} 13. exf6 {[%emt 0:01:30]} gxh4 {[%emt 0:00:00]} 14. Be2 {[%emt 0:00:00]} e5 {[%emt 0:00:30]} 15. Nb3 {[%emt 0:00:00]} Nc6 {[%emt 0:00:30]} 16. Nd5 {[%emt 0:06:30]} Qd6 {[%emt 0:03:30]} 17. O-O {[%emt 0:11:30]} Nd4 {[%emt 0:19:30]} 18. c4 {[%emt 0:06:30]} Nxe2+ {[%emt 0:06:30]} 19. Qxe2 {[%emt 0:00:30]} Rg8 {[%emt 0:00:30]} 20. Nd2 {[%emt 0:16:30]} Bg4 {[%emt 0:15:30]} 21. Qd3 {[%emt 0:06:30]} Qc6 {[%emt 0:00:30]} 22. Ne4 {[%emt 0:16:30]} Bc5+ {[%emt 0:05:30]} 23. Kh1 {[%emt 0:05:30]} h3 {[%emt 0:00:30]} 24. gxh3 {[%emt 0:01:30]} Be6 {[%emt 0:00:30]} 25. Nxc5 {[%emt 0:07:24]} Qxc5 {[%emt 0:00:30]} 26. Rxb7 {[%emt 0:02:30]} O-O-O {[%emt 0:16:30]} 27. Qb3 {[%emt 0:04:49]} Bxd5+ {[%emt 0:00:30]} 28. cxd5 {[%emt 0:00:16]} Qxd5+ {[%emt 0:00:30]} 29. Qxd5 {[%emt 0:00:30]} Rxd5 {[%emt 0:00:00]} 30. Ra7 {[%emt 0:04:49]} Rb5 {[%emt 0:05:00]} 31. Rxf7 {[%emt 0:01:20]} Rb7 {[%emt 0:00:30]} 32. Rxb7 {[%emt 0:02:34]} Kxb7 {[%emt 0:00:30]} 33. f7 {[%emt 0:03:04]} Rf8 {[%emt 0:00:30]} 34. Rf6 {[%emt 0:00:00]} Kc8 {[%emt 0:01:30]} 35. Kg2 {[%emt 0:00:08]} Kd8 {[%emt 0:09:23]} 36. Rxa6 {[%emt 0:01:06]} Ke7 {[%emt 0:00:08]} 37. Ra7+ {[%emt 0:00:18]} Kf6 {[%emt 0:00:05]} 38. a4 {[%emt 0:01:45]} Kg7 {[%emt 0:01:17]} 39. a5 {[%emt 0:00:53]} Rc8 {[%emt 0:03:11]} 40. a6 {[%emt 0:00:00]} Rc6 {[%emt 0:00:56]} 41. Kf3 {[%emt 0:06:04]} e4+ {[%emt 0:07:30]} 42. Kxe4 {[%emt 0:02:30]} Rc4+ {[%emt 0:03:30]} 43. Kd5 {[%emt 0:02:30]} Ra4 {[%emt 0:00:00]} 44. Ke6 {[%emt 0:00:30]} Rf4 {[%emt 0:01:00]} 45. Rc7 {[%emt 0:06:32]} 1-0